bitfinex-derivatives/quotes_ETHF0:USTF0_20251021
["timestamp","ask_amount","ask_price","bid_price","bid_amount"]
[1761029709760,0.7672,3889.6,3889.5,1.34740589]
[1761029710150,0.7672,3889.6,3889.5,0.91120589]
[1761029710350,0.7672,3889.6,3889.5,0.00279961]
[1761029717464,1.20825,3888.9,3888.8,10.07940628]
[1761029717662,0.1274,3888.5,3888.3,0.90840628]
[1761029717965,0.1274,3888.5,3888.1,1.12120628]
[1761029717966,0.3211,3888.2,3888.1,1.12120628]
[1761029718157,0.7455,3888.2,3888.1,1.12120628]
[1761029718455,0.7455,3888.2,3888.1,1.34291003]
[1761029718857,0.1274,3888.5,3888.2,0.46284]
[1761029719054,0.5319,3888.4,3888.3,0.6687]
[1761029719255,0.5319,3888.4,3888.3,0.4321]
[1761029719456,0.7455,3888.4,3888.3,0.4321]
[1761029720058,0.46279,3888.7,3888.3,0.4321]
[1761029720059,0.46271,3889.3,3889.0,0.3382]
[1761029720266,0.88709,3889.5,3889.4,0.7703]
[1761029721165,1.01449,3889.5,3889.4,0.7703]
[1761029722054,1.33559,3889.5,3889.4,0.4321]
[1761029722259,1.20822,3889.2,3889.1,0.7703]
[1761029722454,0.4244,3888.8,3888.7,0.67557]
[1761029722658,0.7455,3888.6,3888.5,0.2128]
[1761029723163,0.5319,3888.8,3888.7,0.5575]
[1761029723361,0.5319,3888.8,3888.7,0.7703]
[1761029723556,0.7455,3888.8,3888.7,0.7703]
[1761029724667,0.7455,3888.8,3888.7,0.2128]
[1761029725054,0.7455,3888.8,3888.7,0.551]
[1761029725464,0.7455,3888.8,3888.7,0.2128]
[1761029725666,0.7455,3888.8,3888.4,0.3382]
[1761029725667,0.7455,3888.6,3888.5,0.7703]
[1761029729162,0.7742,3888.2,3888.1,0.76540375]
[1761029729756,0.1328,3889.0,3888.3,0.46282]
[1761029729960,0.1328,3889.0,3888.1,0.65350592]
[1761029729961,0.7742,3888.6,3888.5,0.2235]
[1761029730368,0.7742,3888.6,3888.5,0.5391]
[1761029731172,0.7742,3888.6,3888.5,0.763]
[1761029732678,0.7742,3889.1,3889.0,0.8998]
[1761029732869,0.7742,3888.7,3888.6,0.763]
[1761029733573,0.7742,3889.3,3889.2,0.2235]
[1761029733764,0.7742,3889.3,3889.2,0.763]
[1761029734679,0.7742,3889.3,3889.2,0.5391]
[1761029735268,0.224,3889.3,3889.2,0.763]
[1761029736274,0.135,3890.0,3889.9,0.4474]
[1761029736275,0.4526,3890.0,3889.9,0.4474]
[1761029736483,0.4526,3890.0,3889.9,0.763]
[1761029736484,0.7742,3890.0,3889.9,0.763]
[1761029738773,0.7742,3889.7,3889.3,0.3156]
[1761029738968,0.7742,3889.5,3889.4,0.763]
[1761029739781,0.7742,3889.5,3889.4,1.22569]
[1761029742782,0.7742,3889.5,3889.4,0.763]
[1761029743670,0.3216,3889.4,3889.3,0.3156]
[1761029743980,0.7742,3889.4,3889.3,0.5391]
[1761029744280,0.7742,3889.4,3889.3,0.763]
[1761029745478,0.7742,3889.4,3889.0,1.04554833]
[1761029745479,0.68665,3889.8,3889.7,0.3156]
[1761029745683,0.5456,3889.8,3889.7,0.763]
[1761029745881,0.7742,3889.8,3889.7,0.763]
[1761029746984,0.7742,3889.3,3889.2,0.763]
[1761029748078,0.7742,3889.6,3889.3,0.3156]
[1761029748276,1.23688,3889.6,3889.5,0.8998]
[1761029748477,0.7742,3889.6,3889.5,0.763]
[1761029748866,0.5456,3889.6,3889.5,0.8998]
[1761029749075,0.68664,3889.8,3889.7,0.4474]
[1761029749275,1.23684,3889.8,3889.7,0.763]
[1761029750175,0.7742,3889.3,3889.2,0.763]
[1761029750784,0.7742,3889.3,3889.2,0.3156]
[1761029750984,0.7742,3889.3,3889.2,0.5391]
[1761029751286,0.7742,3889.3,3889.2,0.763]
[1761029754186,0.7742,3889.1,3889.0,1.44784833]
[1761029754385,0.7742,3889.1,3889.0,0.763]
[1761029754888,0.224,3889.0,3888.9,0.763]
[1761029755082,0.91532,3889.2,3889.1,0.763]
[1761029755479,1.23692,3889.2,3889.1,0.763]
[1761029758082,0.46273,3889.1,3888.8,0.3463]
[1761029758287,0.5395,3889.2,3889.1,0.3463]
[1761029758489,0.5395,3889.2,3889.1,0.7726]
[1761029758693,1.00222,3889.2,3889.1,0.7726]
[1761029758990,1.23302,3889.2,3889.1,0.7726]
[1761029761686,0.91294,3889.0,3888.9,1.46484833]
[1761029761879,1.36774,3889.0,3888.9,0.90874833]
[1761029762080,1.23305,3888.9,3888.8,1.46484833]
[1761029762287,0.46279,3888.6,3888.5,0.90874833]
[1761029762481,1.23309,3888.6,3888.5,1.11854833]
[1761029763082,1.23309,3888.6,3888.5,0.90874833]
[1761029763287,0.36779,3888.6,3888.4,0.90874833]
[1761029763484,0.36779,3888.6,3888.5,0.4799]
[1761029763691,0.46282,3888.3,3888.1,0.00240375]
[1761029763891,1.67631899,3888.2,3888.1,0.00240375]
[1761029764492,1.67631899,3888.2,3888.1,0.34870375]
[1761029765694,0.46282,3888.3,3888.1,0.34870375]
[1761029765993,1.67631899,3888.2,3888.1,0.00240375]
[1761029768291,6.67631899,3888.2,3888.1,0.00240375]
[1761029769598,1.67631899,3888.2,3888.1,0.34870375]
[1761029772102,1.67631899,3888.2,3888.1,0.00240375]
[1761029773103,1.67631899,3888.2,3888.1,0.34870375]
[1761029773904,1.67631899,3888.2,3888.1,0.00240375]
[1761029776002,7.83340899,3888.2,3887.8,0.02572149]
[1761029776198,9.17,3888.1,3887.8,0.02572149]
[1761029776595,14.17,3888.1,3887.5,0.4831]
[1761029776800,0.46296,3887.1,3887.0,0.4756]
[1761029776997,2.14219556,3887.1,3887.0,0.47824542]
[1761029777700,1.62044,3887.0,3886.1,0.2217]
[1761029777889,1.67923556,3887.1,3886.0,0.1336]
[1761029777890,0.46301,3886.7,3886.6,0.5637]
[1761029778097,0.46301,3886.7,3886.6,0.7886]
[1761029778906,1.86143755,3886.7,3886.6,0.79138174]
[1761029780302,1.86143755,3886.7,3886.6,0.56648174]
[1761029780806,1.86143755,3886.7,3886.6,0.34478174]
[1761029781598,1.86143755,3886.7,3886.6,0.00278174]
[1761029785296,1.86143755,3886.7,3886.6,0.34478174]
[1761029785498,0.46301,3886.7,3886.6,0.56648174]
[1761029785701,11.03243755,3886.7,3886.6,0.79138174]
[1761029786808,1.86143755,3886.7,3886.6,0.79138174]
[1761029787005,11.03343755,3886.7,3886.6,0.79138174]
[1761029790794,11.03343755,3886.7,3886.6,0.34478174]
[1761029793507,11.03343755,3886.7,3886.6,0.56948174]
[1761029794305,11.03343755,3886.7,3886.6,0.34478174]
[1761029794504,11.03343755,3886.7,3886.6,0.78018174]
[1761029794704,11.03343755,3886.7,3886.6,0.56948174]
[1761029796510,9.63501,3886.7,3886.6,0.34478174]
[1761029796801,9.63501,3886.7,3886.6,0.00278174]
[1761029797409,9.63501,3886.7,3886.6,0.31728174]
[1761029799704,9.63501,3886.7,3886.6,0.54198174]
[1761029804107,0.46301,3886.7,3886.6,0.75268174]
[1761029804409,0.92748267,3887.1,3887.0,0.8803]
[1761029804410,0.46588657,3887.1,3887.0,0.8803]
[1761029804622,9.63688657,3887.1,3887.0,0.8803]
[1761029805219,9.63688657,3887.1,3887.0,0.4449]
[1761029805718,9.63688657,3887.1,3887.0,0.6696]
[1761029808518,9.63688657,3887.1,3887.0,0.8803]
[1761029811521,9.63588657,3887.1,3887.0,0.8803]
[1761029813023,9.63588657,3887.1,3887.0,0.4449]
[1761029813416,9.63588657,3887.1,3887.0,0.1304]
[1761029814019,9.63588657,3887.1,3887.0,0.6696]
[1761029814713,9.63588657,3887.1,3887.0,0.8803]
[1761029815522,9.63588657,3887.1,3887.0,0.6696]
[1761029815724,9.63588657,3887.1,3887.0,0.4449]
[1761029816126,0.46301,3886.7,3886.6,0.00278174]
[1761029816326,11.03043755,3886.7,3886.6,0.22748174]
[1761029816627,11.03043755,3886.7,3886.6,0.54198174]
[1761029816831,11.03043755,3886.7,3886.6,0.75268174]
[1761029820021,11.03043755,3886.7,3886.6,1.74e-06]
[1761029820224,0.46305,3886.4,3886.3,0.5308]
[1761029820428,11.03047755,3886.4,3886.3,0.5308]
[1761029820724,11.03042755,3886.8,3886.7,0.5308]
[1761029821125,11.03042755,3886.8,3886.7,0.32515621]
[1761029822220,11.03042755,3886.8,3886.7,0.75725621]
[1761029822824,0.46587657,3887.1,3887.0,0.8809]
[1761029823117,1.86430412,3887.1,3887.0,0.4488]
[1761029823528,1.40134412,3887.1,3887.0,0.8809]
[1761029826441,1.40134412,3887.1,3887.0,0.4488]
[1761029826633,0.00291657,3887.1,3887.0,0.8809]
[1761029827338,1.40134412,3887.1,3887.0,0.8809]
[1761029828433,1.40134412,3887.1,3887.0,0.4488]
[1761029828741,1.40134412,3887.1,3887.0,0.6576]
[1761029830944,10.56934412,3887.1,3887.0,0.8809]
[1761029832639,10.56934412,3887.1,3887.0,0.1268]
[1761029832841,0.463,3886.8,3886.7,0.32515621]
[1761029833042,11.02942755,3886.8,3886.7,0.32515621]
[1761029834042,11.02942755,3886.8,3886.7,0.53395621]
[1761029834234,11.02942755,3886.8,3886.7,0.75725621]
[1761029835146,9.63099,3887.0,3886.9,0.7541]
[1761029835546,0.00291657,3887.1,3887.0,0.8809]
[1761029836346,1.40134412,3887.1,3887.0,0.6576]
[1761029836543,1.40134412,3887.1,3887.0,0.8809]
[1761029837642,0.00291657,3887.1,3887.0,1.34388]
[1761029837833,1.15687,3889.0,3887.0,1.34388]
[1761029837834,0.46287,3887.9,3887.8,0.5714]
[1761029838035,0.46285,3888.1,3888.0,0.9298]
[1761029838237,1.39842755,3888.3,3888.0,0.9298]
[1761029838238,1.86125755,3888.3,3888.1,0.3449]
[1761029838442,1.86125755,3888.3,3888.2,0.792]
[1761029838746,1.86373445,3888.3,3888.2,0.792]
[1761029838947,0.4653069,3888.3,3888.2,0.792]
[1761029839843,0.0024769,3888.3,3888.2,0.792]
[1761029842447,0.0024769,3888.3,3888.2,5.792]
[1761029843746,0.0024769,3888.3,3888.2,5.99736413]
[1761029845651,0.0024769,3888.3,3888.2,0.792]
[1761029846552,0.0024769,3888.3,3888.2,1.25483]
[1761029846751,0.0024769,3888.3,3888.2,0.792]
[1761029852745,0.46267,3889.6,3889.5,0.3655]
[1761029852946,0.46267,3889.6,3889.5,0.8926]
[1761029853956,0.46593769,3889.6,3889.5,0.68461132]
[1761029854753,0.46593769,3889.6,3889.5,0.89551132]
[1761029854950,0.00326769,3889.6,3889.5,0.89551132]
[1761029862358,1.67972957,3889.6,3889.5,0.45601132]
[1761029863149,6.67972957,3889.6,3889.5,0.45601132]
[1761029866565,0.46271,3889.3,3889.2,0.3162]
[1761029866866,2.13917188,3889.3,3889.2,0.3162]
[1761029867465,2.13917188,3889.3,3889.2,0.31918601]
[1761029867959,2.13917188,3889.3,3889.2,0.54778601]
[1761029868259,2.13917188,3889.3,3889.2,0.75868601]
[1761029870569,1.60188188,3889.3,3889.2,0.75868601]
[1761029873959,1.60188188,3889.3,3889.2,0.54778601]
[1761029874868,1.60188188,3889.3,3889.2,0.31918601]
[1761029875465,1.60188188,3889.3,3889.2,0.54778601]
[1761029875661,1.60188188,3889.3,3889.2,0.75868601]
[1761029879472,1.60188188,3889.3,3889.2,0.54778601]
[1761029882473,1.60188188,3889.3,3889.2,0.77778601]
[1761029883972,10.76688188,3889.3,3889.2,0.77778601]
[1761029886369,10.76688188,3889.3,3889.2,0.94366106]
[1761029886976,9.62771,3889.3,3889.2,0.94366106]
[1761029896978,9.62771,3889.3,3889.2,0.71366106]
[1761029897187,0.46273,3889.1,3889.0,0.6933]
[1761029897888,0.46273,3889.1,3889.0,0.9185]
[1761029898087,0.4627,3889.5,3889.3,0.7816]
[1761029898381,0.4627,3889.5,3889.4,0.7816]
[1761029901580,0.00326769,3889.6,3889.5,0.9192]
[1761029906786,0.00326769,3889.6,3889.5,0.694]
[1761029908491,0.00326769,3889.6,3889.5,0.9192]
[1761029910684,0.46593769,3889.6,3889.5,0.694]
[1761029914590,9.8520721,3889.6,3889.5,0.4771]
[1761029914984,0.46273,3889.1,3889.0,0.37031577]
[1761029915189,0.90613,3889.1,3889.0,0.60051577]
[1761029916489,1.13843,3889.1,3889.0,0.60051577]
[1761029916686,0.90613,3889.1,3889.0,0.60051577]
[1761029917182,0.90613,3889.1,3889.0,0.93951577]
[1761029920892,0.46273,3889.1,3889.0,0.93951577]
[1761029927500,0.69393,3889.1,3889.0,0.93951577]
[1761029929904,0.46273,3889.1,3889.0,0.93951577]
[1761029934706,0.69393,3889.1,3889.0,0.93951577]
[1761029935615,0.46273,3889.1,3889.0,0.93951577]
[1761029937306,0.69393,3889.1,3889.0,0.93951577]
[1761029938613,0.92183,3889.1,3889.0,0.93951577]
[1761029938810,1.15273,3889.1,3889.0,0.93951577]
[1761029939513,0.92183,3889.1,3889.0,0.93951577]
[1761029942519,1.15273,3889.1,3889.0,0.70931577]
[1761029942716,1.15273,3889.1,3889.0,0.34201577]
[1761029943214,2.07682846,3889.1,3889.0,0.34201577]
[1761029943417,1.13569,3888.6,3888.5,0.1369]
[1761029943618,2.53186257,3888.6,3888.5,0.3609]
[1761029943819,2.30096257,3888.6,3888.5,0.5771]
[1761029944019,2.30096257,3888.6,3888.5,0.9193]
[1761029944424,2.30096257,3888.6,3888.5,0.92242201]
[1761029946621,0.46272,3889.2,3889.1,0.7824]
[1761029946816,0.23416769,3889.6,3889.3,0.7824]
[1761029946817,1.38679846,3889.4,3889.3,0.7824]
[1761029947021,0.4627,3889.4,3889.3,0.7824]
[1761029948126,0.46594769,3889.6,3889.5,0.9177]
[1761029948316,0.00326769,3889.6,3889.5,0.9177]
[1761029953919,0.46593769,3889.6,3889.5,0.9177]
[1761029958127,0.68003769,3889.6,3889.5,0.9177]
[1761029958625,0.46593769,3889.6,3889.5,0.9177]
[1761029963630,0.46593769,3889.6,3889.5,1.38039]
[1761029967628,0.46593769,3889.6,3889.5,0.9177]
[1761029969338,0.67903769,3889.6,3889.5,0.9177]
[1761029970238,2.79544644,3889.6,3889.5,0.7015]
[1761029972034,2.56284644,3889.6,3889.5,0.9297]
[1761029973132,2.79544644,3889.6,3889.5,0.9297]
[1761029974540,0.88753769,3889.6,3889.5,0.9297]
[1761029974840,0.46593769,3889.6,3889.5,0.9297]
[1761029975433,0.67903769,3889.6,3889.5,0.9297]
[1761029977341,0.88753769,3889.6,3889.5,0.9297]
[1761029978137,0.88431,3889.3,3889.2,0.2303]
[1761029978436,1.11691,3889.3,3889.2,0.2303]
[1761029978836,1.11691,3889.3,3889.2,0.5696]
[1761029979141,0.88431,3889.3,3889.2,0.5696]
[1761029980133,1.11691,3889.3,3889.2,0.5696]
[1761029983648,0.88431,3889.3,3889.2,0.5696]
[1761029984544,1.11691,3889.3,3889.2,0.5696]
[1761029989455,1.11691,3889.3,3889.2,0.3393]
[1761029990750,0.88431,3889.3,3889.2,0.7978]
[1761029990946,1.11691,3889.3,3889.2,0.7978]
[1761029991146,0.88431,3889.3,3889.2,0.7978]
[1761029992254,1.11691,3889.3,3889.2,0.7978]
[1761029993754,1.11691,3889.3,3889.2,0.5696]
[1761029994748,1.11691,3889.3,3889.2,0.3393]
[1761029996852,2.79221875,3889.3,3889.2,0.3393]
[1761029997947,1.13568,3888.7,3888.6,0.4391]
[1761029998345,1.13568,3888.7,3888.6,0.76]
[1761030000248,1.13568,3888.7,3888.5,0.14002201]
[1761030000249,0.46279,3888.6,3888.5,0.00312201]
[1761030000449,2.81099875,3888.6,3888.5,0.00312201]
[1761030000650,2.81099875,3888.6,3888.5,0.32402201]
[1761030000851,2.81099875,3888.6,3888.5,0.00312201]
[1761030001155,2.81099875,3888.6,3888.5,0.66472201]
[1761030004153,2.57989875,3888.6,3888.5,0.89102201]
[1761030004353,0.68179,3888.6,3888.5,0.89102201]
[1761030005253,2.57989875,3888.6,3888.5,0.89102201]
[1761030005557,2.81099875,3888.6,3888.5,0.00312201]
[1761030005758,2.81099875,3888.6,3888.5,0.66472201]
[1761030006655,2.81099875,3888.6,3888.5,0.32402201]
[1761030007362,2.81099875,3888.6,3888.5,0.00312201]
[1761030008060,2.81099875,3888.6,3888.5,0.32402201]
[1761030008256,2.81099875,3888.6,3888.5,0.00312201]
[1761030009963,2.81099875,3888.6,3888.5,0.32402201]
[1761030010463,2.81099875,3888.6,3888.5,0.00312201]
[1761030012054,0.46285,3888.1,3888.0,0.1378]
[1761030012249,0.46285,3888.1,3887.9,0.3209]
[1761030012250,1.1358,3887.7,3887.6,0.5337]
[1761030012764,2.81110875,3887.7,3887.6,0.3209]
[1761030012961,11.95910875,3887.7,3887.6,0.5337]
[1761030013161,11.95910875,3887.7,3887.6,0.53627581]
[1761030013361,9.8299,3887.7,3887.6,0.76257581]
[1761030013560,0.4629,3887.7,3887.6,0.76257581]
[1761030014260,0.6819,3887.7,3887.6,0.76257581]
[1761030014562,0.9047,3887.7,3887.6,0.76257581]
[1761030014763,0.9047,3887.7,3887.6,0.53627581]
[1761030015062,0.9047,3887.7,3887.6,0.76257581]
[1761030015259,0.6819,3887.7,3887.6,0.76257581]
[1761030015665,2.81110875,3887.7,3887.6,0.32347581]
[1761030017068,1.1358,3887.7,3887.6,0.00257581]
[1761030018067,1.14218,3887.0,3886.9,0.345]
[1761030018369,1.14218,3887.0,3886.9,0.5534]
[1761030019063,1.14218,3887.0,3886.9,0.34743029]
[1761030019270,1.14218,3887.0,3886.9,0.00243029]
[1761030020764,0.90966,3886.4,3886.3,0.5534]
[1761030021165,9.148,3886.6,3886.5,0.9172]
[1761030021366,9.82643,3886.6,3886.5,0.9172]
[1761030021569,10.05763,3886.6,3886.5,0.9172]
[1761030021873,10.06039541,3886.6,3886.5,0.92010686]
[1761030022666,10.29299541,3886.6,3886.5,0.92010686]
[1761030022865,10.06039541,3886.6,3886.5,0.92010686]
[1761030023068,10.29299541,3886.6,3886.5,0.92010686]
[1761030024172,10.29299541,3886.6,3886.5,0.69370686]
[1761030024371,10.29299541,3886.6,3886.5,0.34790686]
[1761030025871,0.46306,3886.4,3886.3,0.345]
[1761030026066,0.67855,3885.6,3885.5,0.5627]
[1761030026463,0.2326,3886.0,3885.5,0.5627]
[1761030026464,1.39849183,3886.2,3885.6,0.46314]
[1761030026675,9.61108,3886.2,3886.1,0.7798]
[1761030026878,9.82648,3886.2,3886.1,0.78221178]
[1761030028373,0.67848,3886.2,3886.1,0.78221178]
[1761030028779,0.46308,3886.2,3886.1,0.78221178]
[1761030029479,0.67678,3886.2,3886.1,0.78221178]
[1761030030181,0.46308,3886.2,3886.1,0.78221178]
[1761030030975,0.67678,3886.2,3886.1,0.78221178]
[1761030031569,2.51787183,3886.2,3886.1,0.78221178]
[1761030031882,2.51787183,3886.2,3886.1,0.55581178]
[1761030031883,11.66587183,3886.2,3886.1,0.55581178]
[1761030033383,10.03488,3886.2,3886.1,0.77611178]
[1761030036880,0.88688,3886.2,3886.1,0.77611178]
[1761030037087,9.82478,3886.2,3886.1,0.77611178]
[1761030037382,0.00276541,3886.6,3886.5,0.8868]
[1761030037586,9.15076541,3886.6,3886.5,0.8868]
[1761030038086,9.82749541,3886.6,3886.5,0.8868]
[1761030039483,0.67949541,3886.6,3886.5,0.8868]
[1761030040985,0.46579541,3886.6,3886.5,0.8868]
[1761030041185,0.46579541,3886.6,3886.5,6.34984]
[1761030041186,0.00276541,3886.6,3886.5,6.34984]
[1761030041388,0.0947,3888.0,3886.5,6.34984]
[1761030041389,2.07504183,3888.1,3888.0,0.1262]
[1761030041579,2.73918939,3888.1,3888.0,0.4406]
[1761030041780,11.66464183,3888.1,3888.0,0.6665]
[1761030042084,0.67661,3887.6,3887.5,0.5724]
[1761030042283,0.88671,3887.6,3887.5,0.5724]
[1761030042588,0.88990538,3887.6,3887.5,0.8868]
[1761030043982,0.46297,3887.1,3887.0,0.8868]
[1761030044491,0.67667,3887.1,3887.0,0.8868]
[1761030045190,0.88677,3887.1,3887.0,0.8868]
[1761030045784,0.67667,3887.1,3887.0,0.8868]
[1761030046990,0.46297,3887.1,3887.0,0.8868]
[1761030048986,0.46297,3887.1,3887.0,1.34976]
[1761030049192,0.46297,3887.1,3887.0,0.8868]
[1761030049393,0.46297,3887.1,3887.0,1.34976]
[1761030049592,0.00319538,3887.6,3887.2,0.4462]
[1761030049791,0.00319538,3887.6,3887.1,0.46295]
[1761030049792,0.46608538,3887.6,3887.5,0.8868]
[1761030049993,0.67978538,3887.6,3887.5,0.8868]
[1761030050184,2.52087721,3887.6,3887.5,0.4406]
[1761030050378,2.52087721,3887.6,3887.5,0.3144]
[1761030050585,0.67665,3887.1,3887.0,0.5724]
[1761030050795,0.88675,3887.1,3887.0,0.5724]
[1761030050986,0.46295,3887.1,3887.0,0.8868]
[1761030051693,0.67665,3887.1,3887.0,0.8868]
[1761030052394,0.88675,3887.1,3887.0,0.8868]
[1761030052590,0.00319538,3887.6,3887.0,0.8868]
[1761030052794,0.42699538,3887.6,3887.5,0.8868]
[1761030052990,0.88988538,3887.6,3887.5,0.8868]
[1761030055495,0.46608538,3887.6,3887.5,0.8868]
[1761030056303,2.52087721,3887.6,3887.5,0.3144]
[1761030056800,0.88988538,3887.6,3887.5,0.8868]
[1761030057592,2.52117721,3887.6,3887.5,0.3144]
[1761030057792,0.46297,3887.1,3887.0,0.3434]
[1761030057985,0.91157,3887.1,3887.0,0.5748]
[1761030058496,0.91157,3887.1,3887.0,0.8931]
[1761030060301,1.14437,3887.1,3887.0,0.6646]
[1761030060808,1.14443,3886.6,3886.5,0.5748]
[1761030060998,0.91163,3886.6,3886.5,0.5748]
[1761030061304,0.91163,3886.6,3886.5,0.8931]
[1761030061498,1.14443,3886.6,3886.5,0.8931]
[1761030061702,0.68493,3886.6,3886.5,0.8931]
[1761030063004,0.46303,3886.6,3886.5,1.35614]
[1761030063201,1.39849183,3887.3,3887.2,0.4486]
[1761030063202,0.46295,3887.3,3887.2,0.4486]
[1761030063409,0.68485,3887.3,3887.2,0.7669]
[1761030063606,1.14435,3887.3,3887.2,0.3183]
[1761030063798,1.14435,3887.3,3887.2,0.5355]
[1761030063998,0.91155,3887.3,3887.2,0.7669]
[1761030065108,2.54284183,3887.3,3887.2,0.5355]
[1761030065403,2.54284183,3887.3,3887.2,0.3183]
[1761030065704,2.54284183,3887.3,3887.2,0.5355]
[1761030067408,1.14437,3887.1,3887.0,0.1291]
[1761030067706,0.91157,3887.1,3887.0,0.3463]
[1761030067899,0.91157,3887.1,3887.0,0.896]
[1761030068206,0.46297,3887.1,3887.0,0.896]
[1761030068406,0.68487,3887.1,3887.0,0.896]
[1761030069707,0.91157,3887.1,3887.0,0.896]
[1761030069910,1.14437,3887.1,3887.0,0.896]
[1761030070107,1.14437,3887.1,3887.0,0.3183]
[1761030070410,0.91157,3887.1,3887.0,0.896]
[1761030070705,0.68487,3887.1,3887.0,0.896]
[1761030072305,0.91157,3887.1,3887.0,0.896]
[1761030074406,0.46297,3887.1,3887.0,0.896]
[1761030074806,0.68487,3887.1,3887.0,0.896]
[1761030075704,0.46297,3887.1,3887.0,0.896]
[1761030075905,1.16048538,3887.6,3887.0,0.896]
[1761030075906,0.68800538,3887.6,3887.5,0.896]
[1761030077408,0.91470538,3887.6,3887.5,0.896]
[1761030078711,1.14720538,3887.6,3887.5,0.896]
[1761030079109,0.46297,3887.1,3887.0,0.3593]
[1761030079413,0.90253,3886.6,3886.5,0.3564]
[1761030079714,1.13503,3886.6,3886.5,0.6792]
[1761030079905,0.90253,3886.6,3886.5,0.6792]
[1761030080213,0.90253,3886.6,3886.5,0.9058]
[1761030080618,1.13503,3886.6,3886.5,0.9058]
[1761030080913,0.90253,3886.6,3886.5,0.9058]
[1761030081510,0.46303,3886.6,3886.5,0.9058]
[1761030081712,1.39849183,3887.1,3886.5,0.9058]
[1761030081917,0.67525,3887.3,3887.2,0.7796]
[1761030082417,0.90245,3887.3,3887.2,0.7796]
[1761030084420,1.13495,3887.3,3887.2,0.553]
[1761030084714,1.13495,3887.3,3887.2,0.3228]
[1761030085118,1.13495,3887.3,3887.2,0.553]
[1761030085318,0.90245,3887.3,3887.2,0.7796]
[1761030086313,0.46295,3887.3,3887.2,0.7796]
[1761030086618,0.67525,3887.3,3887.2,0.7796]
[1761030086819,0.90245,3887.3,3887.2,0.7796]
[1761030090115,1.13495,3887.3,3887.2,0.7796]
[1761030091118,1.13495,3887.3,3887.2,0.553]
[1761030091624,10.29833,3887.5,3887.0,0.3438]
[1761030091625,1.12417,3887.1,3887.0,0.3438]
[1761030091913,0.89167,3887.1,3887.0,0.7131]
[1761030092511,0.89167,3887.1,3887.0,0.9319]
[1761030092920,0.46297,3887.1,3887.0,0.9319]
[1761030097020,0.4287,3886.6,3886.4,0.9142655]
[1761030097230,0.89174,3886.5,3886.4,0.4501]
[1761030097520,0.89174,3886.5,3886.4,1.3643655]
[1761030097521,0.46304,3886.5,3886.4,1.3643655]
[1761030098121,0.46304,3886.5,3886.4,0.4501]
[1761030099117,0.46304,3886.5,3886.4,0.7939]
[1761030101226,0.46306,3886.3,3886.2,1.37139826]
[1761030101522,0.46306,3886.3,3885.4,2.28582106]
[1761030101523,0.46317,3885.4,3885.3,0.4501]
[1761030101723,0.46317,3885.4,3885.3,1.36628534]
[1761030101914,0.46317,3885.4,3885.3,1.71008534]
[1761030102112,0.46314,3885.8,3885.5,0.9319]
[1761030102314,0.67858,3886.2,3886.1,0.7939]
[1761030102633,0.46308,3886.2,3886.1,0.7939]
[1761030102927,0.67858,3886.2,3886.1,0.7939]
[1761030103426,0.46308,3886.2,3886.1,0.7939]
[1761030104128,0.46305,3886.5,3886.4,0.7939]
[1761030105420,0.46305,3886.5,3886.4,0.5751]
[1761030105421,1.23115,3886.5,3886.4,0.5751]
[1761030105619,1.23115,3886.5,3886.4,0.2313]
[1761030105620,1.35695,3886.5,3886.4,0.2313]
[1761030105819,0.46308,3886.2,3886.1,0.5751]
[1761030106128,1.23118,3886.2,3886.1,0.5751]
[1761030106422,1.23118,3886.2,3886.1,0.7939]
[1761030108321,0.67865,3885.6,3885.5,0.59082176]
[1761030108723,0.67865,3885.6,3885.5,0.93462176]
[1761030109226,0.00319538,3887.6,3886.6,0.4501]
[1761030109422,0.5549,3887.2,3886.6,0.4501]
[1761030109731,0.67846,3887.2,3887.1,0.4501]
[1761030109927,0.46294,3887.4,3887.1,0.7939]
[1761030110127,0.46294,3887.4,3887.3,0.7939]
[1761030110128,0.46293,3887.4,3887.3,0.7939]
[1761030110934,0.00319538,3887.6,3887.5,0.9319]
[1761030111232,0.46297,3887.1,3887.0,0.5881]
[1761030111626,0.46295,3887.3,3887.0,1.05108]
[1761030111827,0.46295,3887.3,3887.2,0.7939]
[1761030115034,0.67845,3887.3,3887.2,0.7939]
[1761030115231,1.23105,3887.3,3887.2,0.7939]
[1761030120241,1.26179,3887.0,3886.9,0.778]
[1761030120635,0.46299,3887.0,3886.9,1.24101]
[1761030120944,1.26179,3887.0,3886.9,0.778]
[1761030121845,0.92129,3887.0,3886.9,0.778]
[1761030122544,0.46299,3887.0,3886.9,1.24101]
[1761030123347,0.69089,3887.0,3886.9,0.778]
[1761030123750,0.1258,3887.5,3886.9,0.778]
[1761030123941,0.23109538,3887.6,3887.5,0.9038]
[1761030124341,0.69401538,3887.6,3887.5,0.9038]
[1761030124947,0.00319538,3887.6,3887.5,1.36673]
[1761030125149,0.00319538,3887.6,3887.5,0.9038]
[1761030125653,0.46611538,3887.6,3887.5,0.9038]
[1761030126550,1.26491538,3887.6,3887.5,0.5502]
[1761030126856,0.00319538,3887.6,3887.5,0.5696]
[1761030127251,0.00319538,3887.6,3887.5,0.9038]
[1761030129754,2.83474743,3888.6,3887.5,0.9038]
[1761030129755,0.46284,3888.3,3888.2,0.2278]
[1761030129957,0.46284,3888.3,3888.2,0.778]
[1761030130656,1.26158,3888.8,3888.7,0.778]
[1761030130850,1.85809969,3888.8,3888.7,0.78005683]
[1761030132353,1.26421386,3888.8,3888.7,0.78005683]
[1761030133057,1.26421386,3888.8,3888.7,0.00205683]
[1761030133257,1.85795476,3888.8,3888.7,0.00205683]
[1761030135062,6.85795476,3888.8,3888.7,0.00205683]
[1761030135461,1.26171,3887.7,3887.6,0.778]
[1761030135663,1.26171,3887.7,3887.6,0.216]
[1761030136269,1.26171,3887.7,3887.6,0.5502]
[1761030136473,1.26171,3887.7,3887.6,0.55245122]